[Event "Late-Titled-Tuesday-Blitz-August-29-2023"]
[Site "Chess.com"]
[Date "2023.08.29"]
[Round "6"]
[White "Jahonas"]
[Black "S-Fazulyanov"]
[Result "1/2-1/2"]
[WhiteElo "2455"]
[BlackElo "2611"]
[TimeControl "180+1"]
[EndTime "15:08:43 PDT"]
[Termination "Game drawn by 50-move rule"]

1. d4 {[%clk 0:03:00.9]} 1... d5 {[%clk 0:02:59.9]} 2. Nd2 {[%clk 0:03:00]} 2...
Nf6 {[%clk 0:02:59.2]} 3. g3 {[%clk 0:02:59]} 3... Bf5 {[%clk 0:02:57]} 4. Bg2
{[%clk 0:02:58.8]} 4... e6 {[%clk 0:02:57.2]} 5. Ngf3 {[%clk 0:02:57.8]} 5...
Bd6 {[%clk 0:02:54.6]} 6. O-O {[%clk 0:02:57.8]} 6... O-O {[%clk 0:02:50.5]} 7.
b3 {[%clk 0:02:55.5]} 7... h6 {[%clk 0:02:48.9]} 8. Bb2 {[%clk 0:02:55.6]} 8...
a5 {[%clk 0:02:48.9]} 9. a4 {[%clk 0:02:55.1]} 9... c6 {[%clk 0:02:45.8]} 10.
Ne5 {[%clk 0:02:53.6]} 10... Nfd7 {[%clk 0:02:42]} 11. e4 {[%clk 0:02:50.9]}
11... Bh7 {[%clk 0:02:30.4]} 12. Nxd7 {[%clk 0:02:50]} 12... Nxd7 {[%clk
0:02:26.6]} 13. e5 {[%clk 0:02:50.1]} 13... Bb4 {[%clk 0:02:20.2]} 14. c3 {[%clk
0:02:49.9]} 14... Be7 {[%clk 0:02:19.7]} 15. Ba3 {[%clk 0:02:26.9]} 15... Bxa3
{[%clk 0:02:13]} 16. Rxa3 {[%clk 0:02:26.6]} 16... b5 {[%clk 0:02:08.9]} 17. Qe2
{[%clk 0:02:22.2]} 17... Qb6 {[%clk 0:02:07.4]} 18. axb5 {[%clk 0:02:19.6]}
18... cxb5 {[%clk 0:02:05.7]} 19. Rfa1 {[%clk 0:02:18.3]} 19... Rfc8 {[%clk
0:02:03.4]} 20. c4 {[%clk 0:02:12.9]} 20... bxc4 {[%clk 0:01:46.4]} 21. bxc4
{[%clk 0:02:11.3]} 21... Qxd4 {[%clk 0:01:44.9]} 22. cxd5 {[%clk 0:02:08.1]}
22... exd5 {[%clk 0:01:04]} 23. e6 {[%clk 0:02:06.2]} 23... Nf6 {[%clk
0:01:04.4]} 24. exf7+ {[%clk 0:02:00]} 24... Kxf7 {[%clk 0:01:05.3]} 25. Nf3
{[%clk 0:01:56.3]} 25... Qb4 {[%clk 0:00:58.3]} 26. Ne5+ {[%clk 0:01:27.5]}
26... Kg8 {[%clk 0:00:57.5]} 27. Nd7 {[%clk 0:00:41.3]} 27... Ne4 {[%clk
0:00:44.3]} 28. Ra4 {[%clk 0:00:34.5]} 28... Qd6 {[%clk 0:00:37.9]} 29. Bxe4
{[%clk 0:00:30.1]} 29... Bxe4 {[%clk 0:00:27.2]} 30. f3 {[%clk 0:00:28.8]} 30...
Bc2 {[%clk 0:00:19.1]} 31. Ne5 {[%clk 0:00:26.7]} 31... Bxa4 {[%clk 0:00:17.8]}
32. Rxa4 {[%clk 0:00:26.2]} 32... Re8 {[%clk 0:00:15.2]} 33. f4 {[%clk
0:00:26.2]} 33... d4 {[%clk 0:00:13.1]} 34. Qc4+ {[%clk 0:00:25.6]} 34... Qe6
{[%clk 0:00:12.4]} 35. Qxd4 {[%clk 0:00:24.1]} 35... Rad8 {[%clk 0:00:13.2]} 36.
Qe4 {[%clk 0:00:23.1]} 36... Rd2 {[%clk 0:00:12.1]} 37. Qc4 {[%clk 0:00:22.1]}
37... Qxc4 {[%clk 0:00:11.2]} 38. Rxc4 {[%clk 0:00:21.5]} 38... Rb8 {[%clk
0:00:10.1]} 39. Rc1 {[%clk 0:00:19.7]} 39... a4 {[%clk 0:00:10.8]} 40. Ra1
{[%clk 0:00:19.4]} 40... a3 {[%clk 0:00:10.9]} 41. Nf3 {[%clk 0:00:19.8]} 41...
Rc2 {[%clk 0:00:10.8]} 42. Ne1 {[%clk 0:00:13.1]} 42... Rcb2 {[%clk 0:00:10.2]}
43. Rxa3 {[%clk 0:00:12.8]} 43... Rb1 {[%clk 0:00:10.3]} 44. Re3 {[%clk
0:00:12.8]} 44... R8b3 {[%clk 0:00:09.5]} 45. Rxb3 {[%clk 0:00:11.6]} 45... Rxb3
{[%clk 0:00:10]} 46. Kf2 {[%clk 0:00:11.9]} 46... Kf7 {[%clk 0:00:10.6]} 47. h4
{[%clk 0:00:11.7]} 47... Rb2+ {[%clk 0:00:11.2]} 48. Ke3 {[%clk 0:00:10.8]}
48... Kf6 {[%clk 0:00:10.6]} 49. g4 {[%clk 0:00:10.7]} 49... h5 {[%clk
0:00:10.4]} 50. gxh5 {[%clk 0:00:10]} 50... Kf5 {[%clk 0:00:10.7]} 51. Nf3
{[%clk 0:00:09.9]} 51... Rb3+ {[%clk 0:00:10.9]} 52. Kf2 {[%clk 0:00:09.9]}
52... Kg4 {[%clk 0:00:10.9]} 53. Ng5 {[%clk 0:00:09.8]} 53... Kxf4 {[%clk
0:00:09.7]} 54. Ne6+ {[%clk 0:00:09.9]} 54... Kg4 {[%clk 0:00:10]} 55. Nxg7
{[%clk 0:00:10.8]} 55... Kxh4 {[%clk 0:00:10.3]} 56. Nf5+ {[%clk 0:00:11]} 56...
Kxh5 {[%clk 0:00:10]} 57. Ne3 {[%clk 0:00:10.8]} 57... Kg5 {[%clk 0:00:09.8]}
58. Ke2 {[%clk 0:00:11.3]} 58... Kf4 {[%clk 0:00:09.6]} 59. Nd5+ {[%clk
0:00:11]} 59... Ke4 {[%clk 0:00:10]} 60. Nf6+ {[%clk 0:00:11.1]} 60... Kf5
{[%clk 0:00:08.7]} 61. Nd5 {[%clk 0:00:11.1]} 61... Ke5 {[%clk 0:00:08.9]} 62.
Ne3 {[%clk 0:00:10.4]} 62... Ke4 {[%clk 0:00:09.1]} 63. Nc4 {[%clk 0:00:09.4]}
63... Rc3 {[%clk 0:00:07]} 64. Nd2+ {[%clk 0:00:09.6]} 64... Kf4 {[%clk
0:00:06.3]} 65. Nf1 {[%clk 0:00:08.1]} 65... Rc2+ {[%clk 0:00:05.6]} 66. Kd3
{[%clk 0:00:07]} 66... Ra2 {[%clk 0:00:05.1]} 67. Nd2 {[%clk 0:00:07.3]} 67...
Ke5 {[%clk 0:00:05.3]} 68. Nc4+ {[%clk 0:00:07.1]} 68... Kd5 {[%clk 0:00:05.7]}
69. Ne3+ {[%clk 0:00:07.8]} 69... Kc5 {[%clk 0:00:05]} 70. Nc4 {[%clk
0:00:08.1]} 70... Ra8 {[%clk 0:00:04.5]} 71. Ne3 {[%clk 0:00:08.1]} 71... Ra4
{[%clk 0:00:04.7]} 72. Nc2 {[%clk 0:00:07.2]} 72... Ra2 {[%clk 0:00:04.6]} 73.
Ne3 {[%clk 0:00:07.2]} 73... Ra3+ {[%clk 0:00:05.2]} 74. Ke4 {[%clk 0:00:07.2]}
74... Kc6 {[%clk 0:00:04.6]} 75. Nc2 {[%clk 0:00:06.3]} 75... Rc3 {[%clk
0:00:05]} 76. Ne3 {[%clk 0:00:05.7]} 76... Kc5 {[%clk 0:00:05.7]} 77. Nf5 {[%clk
0:00:04.4]} 77... Rh3 {[%clk 0:00:05.4]} 78. Ne3 {[%clk 0:00:04.2]} 78... Rh4+
{[%clk 0:00:05.2]} 79. Kd3 {[%clk 0:00:04.5]} 79... Kb5 {[%clk 0:00:04.6]} 80.
Nc2 {[%clk 0:00:03.7]} 80... Rf4 {[%clk 0:00:04.5]} 81. Ne3 {[%clk 0:00:04.1]}
81... Kc5 {[%clk 0:00:05]} 82. Nc2 {[%clk 0:00:04]} 82... Rf3+ {[%clk 0:00:05]}
83. Ke4 {[%clk 0:00:03.5]} 83... Rc3 {[%clk 0:00:04.6]} 84. Ne3 {[%clk
0:00:03.7]} 84... Kd6 {[%clk 0:00:04.7]} 85. Nf5+ {[%clk 0:00:02.9]} 85... Ke6
{[%clk 0:00:04.6]} 86. Ne3 {[%clk 0:00:03.5]} 86... Ra3 {[%clk 0:00:04.5]} 87.
Kd4 {[%clk 0:00:03.5]} 87... Ra4+ {[%clk 0:00:04.5]} 88. Nc4 {[%clk 0:00:03.8]}
88... Kd7 {[%clk 0:00:04.7]} 89. Kd5 {[%clk 0:00:03.6]} 89... Kc7 {[%clk
0:00:04.6]} 90. Kc5 {[%clk 0:00:03.3]} 90... Ra1 {[%clk 0:00:04.3]} 91. Kd5
{[%clk 0:00:03.6]} 91... Rc1 {[%clk 0:00:04.6]} 92. Ne5 {[%clk 0:00:03.3]} 92...
Kb6 {[%clk 0:00:04.3]} 93. Nd3 {[%clk 0:00:02.8]} 93... Rd1 {[%clk 0:00:04]} 94.
Kd4 {[%clk 0:00:03.2]} 94... Kb5 {[%clk 0:00:04.2]} 95. Ke4 {[%clk 0:00:03]}
95... Kc6 {[%clk 0:00:04]} 96. Ne5+ {[%clk 0:00:03.1]} 96... Kd6 {[%clk
0:00:04.1]} 97. Nd3 {[%clk 0:00:03.7]} 97... Ke6 {[%clk 0:00:04.7]} 98. Kd4
{[%clk 0:00:04.1]} 98... Kf5 {[%clk 0:00:04.8]} 99. Ke3 {[%clk 0:00:03.9]} 99...
Ra1 {[%clk 0:00:03.1]} 100. Kd4 {[%clk 0:00:04.5]} 100... Ra4+ {[%clk
0:00:03.2]} 101. Kd5 {[%clk 0:00:04.4]} 101... Ra3 {[%clk 0:00:04.1]} 102. Nc5
{[%clk 0:00:04.6]} 102... Ra5 {[%clk 0:00:04.5]} 103. Kd4 {[%clk 0:00:04.3]}
103... Kf4 {[%clk 0:00:04.4]} 104. Kd5 {[%clk 0:00:04.7]} 104... Kf5 {[%clk
0:00:05]} 105. Kd4 {[%clk 0:00:04.5]} 105... Rb5 {[%clk 0:00:05.3]} 106. Kd5
{[%clk 0:00:04.7]} 106... Rb4 {[%clk 0:00:05.7]} 1/2-1/2

[Event "Late-Titled-Tuesday-Blitz-August-29-2023"]
[Site "Chess.com"]
[Date "2023.08.29"]
[Round "7"]
[White "Sacbutt"]
[Black "Ducke13"]
[Result "0-1"]
[WhiteElo "2235"]
[BlackElo "2430"]
[TimeControl "180+1"]
[EndTime "15:10:42 PDT"]
[Termination "Ducke13 won by resignation"]

1. d4 {[%clk 0:02:55.7]} 1... Nf6 {[%clk 0:02:59.8]} 2. c3 {[%clk 0:02:55.4]}
2... g6 {[%clk 0:03:00.4]} 3. Bf4 {[%clk 0:02:54]} 3... Bg7 {[%clk 0:03:00.9]}
4. h3 {[%clk 0:02:53.5]} 4... b6 {[%clk 0:03:01]} 5. e3 {[%clk 0:02:53.6]} 5...
Bb7 {[%clk 0:03:01.5]} 6. Nf3 {[%clk 0:02:53.5]} 6... d6 {[%clk 0:03:02]} 7.
Nbd2 {[%clk 0:02:52.9]} 7... Nbd7 {[%clk 0:03:02.6]} 8. Bd3 {[%clk 0:02:53]}
8... O-O {[%clk 0:02:59.9]} 9. O-O {[%clk 0:02:53]} 9... Qe8 {[%clk 0:02:57.7]}
10. e4 {[%clk 0:02:51.5]} 10... e5 {[%clk 0:02:57.5]} 11. dxe5 {[%clk
0:02:48.9]} 11... dxe5 {[%clk 0:02:57.7]} 12. Bg5 {[%clk 0:02:48.5]} 12... h6
{[%clk 0:02:56.5]} 13. Bh4 {[%clk 0:02:47.2]} 13... g5 {[%clk 0:02:55.3]} 14.
Bg3 {[%clk 0:02:46.8]} 14... Nh5 {[%clk 0:02:55.3]} 15. Bxe5 {[%clk 0:02:36.5]}
15... Nxe5 {[%clk 0:02:47.8]} 16. Nxe5 {[%clk 0:02:36.3]} 16... Nf4 {[%clk
0:02:46.9]} 17. Ndf3 {[%clk 0:02:27.3]} 17... Bxe5 {[%clk 0:02:46.1]} 0-1

[Event "Late-Titled-Tuesday-Blitz-August-29-2023"]
[Site "Chess.com"]
[Date "2023.08.29"]
[Round "7"]
[White "DanielNaroditsky"]
[Black "Ramosha"]
[Result "1-0"]
[WhiteElo "3098"]
[BlackElo "2643"]
[TimeControl "180+1"]
[EndTime "15:11:59 PDT"]
[Termination "DanielNaroditsky won by checkmate"]

1. e4 {[%clk 0:02:49]} 1... c6 {[%clk 0:02:59.9]} 2. Nc3 {[%clk 0:02:46.6]} 2...
d5 {[%clk 0:03:00.6]} 3. Qf3 {[%clk 0:02:47.5]} 3... dxe4 {[%clk 0:03:00.6]} 4.
Nxe4 {[%clk 0:02:47.9]} 4... Nf6 {[%clk 0:03:00.9]} 5. Bc4 {[%clk 0:02:48.1]}
5... Nbd7 {[%clk 0:02:55.9]} 6. d4 {[%clk 0:02:44.6]} 6... Nb6 {[%clk
0:02:53.8]} 7. Bd3 {[%clk 0:02:44.9]} 7... Qxd4 {[%clk 0:02:53.5]} 8. Ne2 {[%clk
0:02:45.1]} 8... Qd8 {[%clk 0:02:52.2]} 9. O-O {[%clk 0:02:42.3]} 9... Be6
{[%clk 0:02:52]} 10. Nf4 {[%clk 0:02:37.1]} 10... Bd5 {[%clk 0:02:49.3]} 11.
Nxd5 {[%clk 0:02:37.6]} 11... Nbxd5 {[%clk 0:02:46.7]} 12. c4 {[%clk 0:02:32.8]}
12... Nb6 {[%clk 0:02:43.1]} 13. Re1 {[%clk 0:02:11.5]} 13... e6 {[%clk
0:02:41.7]} 14. Bf4 {[%clk 0:02:10.5]} 14... Nxe4 {[%clk 0:02:35.2]} 15. Bxe4
{[%clk 0:02:07.1]} 15... Qf6 {[%clk 0:02:33.9]} 16. Bxc6+ {[%clk 0:02:05.2]}
16... bxc6 {[%clk 0:02:30.8]} 17. Qxc6+ {[%clk 0:02:06.1]} 17... Ke7 {[%clk
0:02:28.2]} 18. Bd6+ {[%clk 0:01:58.7]} 18... Kd8 {[%clk 0:02:28.2]} 19. Bc7+
{[%clk 0:01:41.4]} 19... Kc8 {[%clk 0:02:25.2]} 20. Bxb6+ {[%clk 0:01:42.3]}
20... Kb8 {[%clk 0:02:24]} 21. Qc7# {[%clk 0:01:42.7]} 1-0

[Event "Late-Titled-Tuesday-Blitz-August-29-2023"]
[Site "Chess.com"]
[Date "2023.08.29"]
[Round "7"]
[White "Berardino"]
[Black "Chessdemon2019"]
[Result "1-0"]
[WhiteElo "2687"]
[BlackElo "2404"]
[TimeControl "180+1"]
[EndTime "15:12:24 PDT"]
[Termination "Berardino won by resignation"]

1. d4 {[%clk 0:03:00.9]} 1... e6 {[%clk 0:02:57.5]} 2. c4 {[%clk 0:02:59.2]}
2... Nf6 {[%clk 0:02:57]} 3. Nc3 {[%clk 0:02:57.7]} 3... Bb4 {[%clk 0:02:57.1]}
4. e3 {[%clk 0:02:57.4]} 4... b6 {[%clk 0:02:56.7]} 5. Ne2 {[%clk 0:02:56.5]}
5... O-O {[%clk 0:02:56.3]} 6. a3 {[%clk 0:02:54.5]} 6... Be7 {[%clk 0:02:56.4]}
7. Ng3 {[%clk 0:02:52.8]} 7... d5 {[%clk 0:02:55.3]} 8. cxd5 {[%clk 0:02:51.9]}
8... Nxd5 {[%clk 0:02:55.4]} 9. Bd3 {[%clk 0:02:51.1]} 9... Nd7 {[%clk
0:02:50.8]} 10. e4 {[%clk 0:02:22.7]} 10... Nxc3 {[%clk 0:02:50]} 11. bxc3
{[%clk 0:02:23.3]} 11... c5 {[%clk 0:02:50.4]} 12. O-O {[%clk 0:02:21.5]} 12...
Bb7 {[%clk 0:02:49.2]} 13. e5 {[%clk 0:02:09.5]} 13... Re8 {[%clk 0:02:45.9]}
14. Re1 {[%clk 0:02:07.1]} 14... Nf8 {[%clk 0:02:45.5]} 15. Qg4 {[%clk 0:02:05]}
15... cxd4 {[%clk 0:02:34.8]} 16. cxd4 {[%clk 0:02:04.7]} 16... Rc8 {[%clk
0:02:20.5]} 17. Be3 {[%clk 0:01:45.3]} 17... Qd5 {[%clk 0:02:18.8]} 18. Ne4
{[%clk 0:01:39.7]} 18... Rc3 {[%clk 0:01:58.6]} 19. Nxc3 {[%clk 0:01:38.5]} 1-0

[Event "Late-Titled-Tuesday-Blitz-August-29-2023"]
[Site "Chess.com"]
[Date "2023.08.29"]
[Round "7"]
[White "Giorno"]
[Black "hsd2016"]
[Result "1-0"]
[WhiteElo "2471"]
[BlackElo "2260"]
[TimeControl "180+1"]
[EndTime "15:12:45 PDT"]
[Termination "Giorno won by resignation"]

1. e4 {[%clk 0:03:00.9]} 1... e5 {[%clk 0:01:17.4]} 2. Nf3 {[%clk 0:02:58.9]}
2... Nc6 {[%clk 0:01:15.4]} 3. Nc3 {[%clk 0:02:58.3]} 3... Nf6 {[%clk
0:01:15.3]} 4. Bb5 {[%clk 0:02:58.2]} 4... Bb4 {[%clk 0:01:14.7]} 5. O-O {[%clk
0:02:54.5]} 5... O-O {[%clk 0:01:14.6]} 6. Bxc6 {[%clk 0:02:50.2]} 6... dxc6
{[%clk 0:01:14.2]} 7. Nxe5 {[%clk 0:02:49.5]} 7... Bxc3 {[%clk 0:01:13.8]} 8.
bxc3 {[%clk 0:02:46.6]} 8... Nxe4 {[%clk 0:01:13.7]} 9. Re1 {[%clk 0:02:39]}
9... Nf6 {[%clk 0:01:11.8]} 10. d3 {[%clk 0:02:36.1]} 10... h6 {[%clk
0:01:12.1]} 11. c4 {[%clk 0:02:35.3]} 11... Bf5 {[%clk 0:01:10.9]} 12. Rb1
{[%clk 0:02:35.1]} 12... Re8 {[%clk 0:01:11.5]} 13. Rxb7 {[%clk 0:02:32.5]}
13... Qd4 {[%clk 0:01:11.2]} 14. Bb2 {[%clk 0:02:25.6]} 14... Qf4 {[%clk
0:01:10.1]} 15. g3 {[%clk 0:02:21.3]} 15... Qg5 {[%clk 0:01:09.7]} 16. h4 {[%clk
0:02:12.8]} 1-0

[Event "Late-Titled-Tuesday-Blitz-August-29-2023"]
[Site "Chess.com"]
[Date "2023.08.29"]
[Round "7"]
[White "nitpicker"]
[Black "cthake"]
[Result "1-0"]
[WhiteElo "2296"]
[BlackElo "1866"]
[TimeControl "180+1"]
[EndTime "15:13:05 PDT"]
[Termination "nitpicker won by resignation"]

1. d4 {[%clk 0:03:00.9]} 1... e6 {[%clk 0:02:55.6]} 2. c4 {[%clk 0:03:00.6]}
2... f5 {[%clk 0:02:55.7]} 3. Nf3 {[%clk 0:03:00.5]} 3... Nf6 {[%clk 0:02:55.7]}
4. Qc2 {[%clk 0:02:59.8]} 4... Be7 {[%clk 0:02:55.6]} 5. b3 {[%clk 0:02:57.1]}
5... O-O {[%clk 0:02:55.3]} 6. g3 {[%clk 0:02:56.5]} 6... d6 {[%clk 0:02:54.8]}
7. Bg2 {[%clk 0:02:56.6]} 7... Nc6 {[%clk 0:02:54.7]} 8. Bb2 {[%clk 0:02:56.4]}
8... Qe8 {[%clk 0:02:52.3]} 9. O-O {[%clk 0:02:51.2]} 9... Nb4 {[%clk
0:02:46.3]} 10. Qc1 {[%clk 0:02:43]} 10... Ne4 {[%clk 0:02:43.3]} 11. a3 {[%clk
0:02:34.3]} 11... Na6 {[%clk 0:02:35.1]} 12. Nfd2 {[%clk 0:02:27.5]} 12... d5
{[%clk 0:02:11.7]} 13. f3 {[%clk 0:02:15.9]} 13... Nxd2 {[%clk 0:02:08.7]} 14.
Nxd2 {[%clk 0:02:16.1]} 14... Bf6 {[%clk 0:02:08.9]} 15. e4 {[%clk 0:02:09.5]}
15... dxe4 {[%clk 0:02:00.3]} 16. fxe4 {[%clk 0:02:06.4]} 16... Nc5 {[%clk
0:01:58.7]} 17. dxc5 {[%clk 0:01:48.9]} 17... Bxb2 {[%clk 0:01:55.3]} 18. Qxb2
{[%clk 0:01:48.8]} 18... c6 {[%clk 0:01:53.2]} 19. Rae1 {[%clk 0:01:46.5]} 19...
Qg6 {[%clk 0:01:47.9]} 20. Nf3 {[%clk 0:01:29.6]} 20... fxe4 {[%clk 0:01:47.4]}
21. Ne5 {[%clk 0:01:23]} 21... Qe8 {[%clk 0:01:45.8]} 22. Bxe4 {[%clk
0:01:20.4]} 22... Rxf1+ {[%clk 0:01:45]} 23. Rxf1 {[%clk 0:01:20.2]} 1-0

[Event "Late-Titled-Tuesday-Blitz-August-29-2023"]
[Site "Chess.com"]
[Date "2023.08.29"]
[Round "7"]
[White "Irishchessman16"]
[Black "Aygehovit1992"]
[Result "0-1"]
[WhiteElo "2493"]
[BlackElo "2717"]
[TimeControl "180+1"]
[EndTime "15:13:17 PDT"]
[Termination "Aygehovit1992 won by resignation"]

1. e4 {[%clk 0:03:00.9]} 1... c5 {[%clk 0:02:59.5]} 2. Nf3 {[%clk 0:02:58.6]}
2... d6 {[%clk 0:03:00]} 3. d4 {[%clk 0:02:57.1]} 3... cxd4 {[%clk 0:03:00.9]}
4. Nxd4 {[%clk 0:02:57.8]} 4... Nf6 {[%clk 0:03:01.4]} 5. Nc3 {[%clk 0:02:58.4]}
5... g6 {[%clk 0:03:02.1]} 6. g3 {[%clk 0:02:56.8]} 6... Nc6 {[%clk 0:02:51.5]}
7. Bg2 {[%clk 0:02:56.7]} 7... Nxd4 {[%clk 0:02:51]} 8. Qxd4 {[%clk 0:02:55.9]}
8... Bg7 {[%clk 0:02:51.7]} 9. O-O {[%clk 0:02:55.7]} 9... O-O {[%clk
0:02:51.9]} 10. h3 {[%clk 0:02:54.6]} 10... Be6 {[%clk 0:02:51.9]} 11. Qd1
{[%clk 0:02:50.4]} 11... Rc8 {[%clk 0:02:51.3]} 12. Be3 {[%clk 0:02:50.7]} 12...
Qa5 {[%clk 0:02:48.7]} 13. Nd5 {[%clk 0:02:41.4]} 13... Nxd5 {[%clk 0:02:39.7]}
14. exd5 {[%clk 0:02:42.3]} 14... Bf5 {[%clk 0:02:40.5]} 15. c3 {[%clk
0:02:42.4]} 15... b5 {[%clk 0:02:31.8]} 16. Qb3 {[%clk 0:02:29.1]} 16... Rc7
{[%clk 0:02:02.1]} 17. Rfd1 {[%clk 0:02:21.5]} 17... Rb8 {[%clk 0:01:59.7]} 18.
a3 {[%clk 0:02:17.3]} 18... Qa4 {[%clk 0:01:53.2]} 19. Qa2 {[%clk 0:02:13.3]}
19... Bc2 {[%clk 0:01:50.9]} 20. Rd2 {[%clk 0:02:10.2]} 20... Bb3 {[%clk
0:01:51.1]} 21. Qb1 {[%clk 0:02:09.9]} 21... a5 {[%clk 0:01:20.8]} 22. Bd4
{[%clk 0:02:07.6]} 22... Bxd4 {[%clk 0:01:19.3]} 23. Rxd4 {[%clk 0:02:07]} 23...
Rc4 {[%clk 0:01:19.9]} 24. Rd3 {[%clk 0:02:00.7]} 24... Bc2 {[%clk 0:01:19.4]}
25. Qf1 {[%clk 0:01:53.4]} 25... Bxd3 {[%clk 0:01:18.5]} 26. Qxd3 {[%clk
0:01:54.3]} 26... Qb3 {[%clk 0:01:14.2]} 27. Re1 {[%clk 0:01:53.7]} 27... Rc7
{[%clk 0:01:14.2]} 28. Re2 {[%clk 0:01:53.1]} 28... b4 {[%clk 0:01:14.4]} 0-1

[Event "Late-Titled-Tuesday-Blitz-August-29-2023"]
[Site "Chess.com"]
[Date "2023.08.29"]
[Round "7"]
[White "TanitoluwaAps116"]
[Black "LeninGuerra"]
[Result "1-0"]
[WhiteElo "2775"]
[BlackElo "2548"]
[TimeControl "180+1"]
[EndTime "15:13:20 PDT"]
[Termination "TanitoluwaAps116 won by checkmate"]

1. e4 {[%clk 0:02:45.9]} 1... c5 {[%clk 0:02:59.9]} 2. Nf3 {[%clk 0:02:43.2]}
2... e6 {[%clk 0:03:00.1]} 3. c3 {[%clk 0:02:41.6]} 3... b6 {[%clk 0:02:56.3]}
4. d4 {[%clk 0:02:39.6]} 4... cxd4 {[%clk 0:02:57.2]} 5. cxd4 {[%clk 0:02:39.7]}
5... Bb7 {[%clk 0:02:57.1]} 6. Nc3 {[%clk 0:02:40.1]} 6... Nf6 {[%clk 0:02:56]}
7. Bd3 {[%clk 0:02:38.4]} 7... d6 {[%clk 0:02:53.7]} 8. O-O {[%clk 0:02:38.1]}
8... Be7 {[%clk 0:02:53.4]} 9. Re1 {[%clk 0:02:38]} 9... O-O {[%clk 0:02:53]}
10. Bf4 {[%clk 0:02:35.1]} 10... a6 {[%clk 0:02:51.6]} 11. Rc1 {[%clk
0:02:33.6]} 11... Nbd7 {[%clk 0:02:51.6]} 12. e5 {[%clk 0:02:21.9]} 12... dxe5
{[%clk 0:02:48.6]} 13. Nxe5 {[%clk 0:02:22.8]} 13... Nxe5 {[%clk 0:02:47.2]} 14.
Bxe5 {[%clk 0:02:23.5]} 14... Nd5 {[%clk 0:02:47.3]} 15. Nxd5 {[%clk 0:02:17.2]}
15... Bxd5 {[%clk 0:02:46.7]} 16. Re3 {[%clk 0:02:09.8]} 16... Bg5 {[%clk
0:02:33.1]} 17. Qh5 {[%clk 0:01:55.1]} 17... g6 {[%clk 0:02:27.7]} 18. Qh3
{[%clk 0:01:19.6]} 18... Bxe3 {[%clk 0:02:22]} 19. fxe3 {[%clk 0:01:17.5]} 19...
f6 {[%clk 0:02:18.9]} 20. Rc7 {[%clk 0:01:17]} 20... h5 {[%clk 0:01:50.3]} 21.
Qg3 {[%clk 0:01:00.6]} 21... g5 {[%clk 0:01:50.6]} 22. Qxg5+ {[%clk 0:01:00.1]}
22... fxg5 {[%clk 0:01:44.5]} 23. Bh7# {[%clk 0:00:57.9]} 1-0

[Event "Late-Titled-Tuesday-Blitz-August-29-2023"]
[Site "Chess.com"]
[Date "2023.08.29"]
[Round "7"]
[White "SHIVACalypso"]
[Black "jk13"]
[Result "0-1"]
[WhiteElo "2518"]
[BlackElo "2681"]
[TimeControl "180+1"]
[EndTime "15:13:29 PDT"]
[Termination "jk13 won by resignation"]

1. Nf3 {[%clk 0:02:58.3]} 1... d5 {[%clk 0:02:59.8]} 2. c4 {[%clk 0:02:58.7]}
2... e6 {[%clk 0:03:00.1]} 3. g3 {[%clk 0:02:58.4]} 3... Nf6 {[%clk 0:03:00.5]}
4. Bg2 {[%clk 0:02:59]} 4... dxc4 {[%clk 0:03:01.1]} 5. Qa4+ {[%clk 0:02:53.6]}
5... c6 {[%clk 0:03:01.4]} 6. Qxc4 {[%clk 0:02:53.1]} 6... b5 {[%clk 0:03:02.2]}
7. Qc2 {[%clk 0:02:52.8]} 7... Bb7 {[%clk 0:03:03.1]} 8. O-O {[%clk 0:02:52.6]}
8... a6 {[%clk 0:03:03.8]} 9. d4 {[%clk 0:02:52.4]} 9... Nbd7 {[%clk 0:03:03.4]}
10. Bf4 {[%clk 0:02:50.9]} 10... c5 {[%clk 0:03:02.6]} 11. dxc5 {[%clk
0:02:49.7]} 11... Bxc5 {[%clk 0:03:01.9]} 12. Nc3 {[%clk 0:02:48]} 12... Rc8
{[%clk 0:03:00.3]} 13. a3 {[%clk 0:02:39]} 13... O-O {[%clk 0:02:58.5]} 14. Rad1
{[%clk 0:02:32.3]} 14... Qb6 {[%clk 0:02:54.5]} 15. Ne5 {[%clk 0:02:14.1]} 15...
Nxe5 {[%clk 0:02:37]} 16. Bxe5 {[%clk 0:02:15]} 16... Bxg2 {[%clk 0:02:36.7]}
17. Kxg2 {[%clk 0:02:15.9]} 17... Ng4 {[%clk 0:02:22.1]} 18. Qe4 {[%clk
0:02:02.1]} 18... Nxf2 {[%clk 0:01:50.5]} 19. Rxf2 {[%clk 0:02:01.5]} 19... Bxf2
{[%clk 0:01:51.4]} 20. Qg4 {[%clk 0:01:51]} 20... f6 {[%clk 0:01:40.7]} 21. Rd7
{[%clk 0:01:50.5]} 21... Qc6+ {[%clk 0:01:40.8]} 22. Kxf2 {[%clk 0:01:46.8]}
22... Qxd7 {[%clk 0:01:40.9]} 23. Bf4 {[%clk 0:01:44.8]} 23... Rc4 {[%clk
0:01:31.1]} 24. Qf3 {[%clk 0:01:36]} 24... Qc6 {[%clk 0:01:25.6]} 25. Qd3 {[%clk
0:01:29.6]} 25... Qc5+ {[%clk 0:01:15.7]} 26. Be3 {[%clk 0:01:27.7]} 26... Qf5+
{[%clk 0:01:15.8]} 0-1

[Event "Late-Titled-Tuesday-Blitz-August-29-2023"]
[Site "Chess.com"]
[Date "2023.08.29"]
[Round "7"]
[White "subham777"]
[Black "ilushka"]
[Result "0-1"]
[WhiteElo "2513"]
[BlackElo "2391"]
[TimeControl "180+1"]
[EndTime "15:13:35 PDT"]
[Termination "ilushka won by checkmate"]

1. e4 {[%clk 0:03:00.9]} 1... c5 {[%clk 0:02:59.7]} 2. Nf3 {[%clk 0:03:00.4]}
2... Nc6 {[%clk 0:03:00.1]} 3. Bb5 {[%clk 0:02:58.7]} 3... g6 {[%clk 0:02:59.5]}
4. O-O {[%clk 0:02:57.9]} 4... Bg7 {[%clk 0:02:59.7]} 5. Re1 {[%clk 0:02:57.2]}
5... Nf6 {[%clk 0:03:00.2]} 6. c3 {[%clk 0:02:57]} 6... O-O {[%clk 0:03:00]} 7.
d4 {[%clk 0:02:56.6]} 7... d5 {[%clk 0:03:00.2]} 8. e5 {[%clk 0:02:56.4]} 8...
Ne4 {[%clk 0:03:00.7]} 9. Nbd2 {[%clk 0:02:55.4]} 9... Nxd2 {[%clk 0:02:57.9]}
10. Bxd2 {[%clk 0:02:56.3]} 10... Qb6 {[%clk 0:02:57.4]} 11. Bxc6 {[%clk
0:02:55.4]} 11... bxc6 {[%clk 0:02:54.8]} 12. Rb1 {[%clk 0:02:52.7]} 12... Bf5
{[%clk 0:02:53.2]} 13. dxc5 {[%clk 0:02:48.6]} 13... Qb7 {[%clk 0:02:39.5]} 14.
b4 {[%clk 0:02:48.9]} 14... Bxb1 {[%clk 0:02:38.2]} 15. Qxb1 {[%clk 0:02:49.6]}
15... a5 {[%clk 0:02:37.6]} 16. a3 {[%clk 0:02:45.9]} 16... axb4 {[%clk
0:02:36]} 17. axb4 {[%clk 0:02:46.8]} 17... Ra6 {[%clk 0:02:33.5]} 18. Nd4
{[%clk 0:02:46.5]} 18... Rfa8 {[%clk 0:02:32.9]} 19. f4 {[%clk 0:02:46.8]} 19...
Ra2 {[%clk 0:02:07.5]} 20. Be3 {[%clk 0:02:41]} 20... Qd7 {[%clk 0:01:53]} 21.
Qd1 {[%clk 0:02:31.9]} 21... f6 {[%clk 0:01:46.1]} 22. e6 {[%clk 0:02:27.8]}
22... Qb7 {[%clk 0:01:40.7]} 23. f5 {[%clk 0:02:26.6]} 23... Qa6 {[%clk
0:01:31.1]} 24. fxg6 {[%clk 0:02:19.3]} 24... hxg6 {[%clk 0:01:28.2]} 25. Qg4
{[%clk 0:02:17.6]} 25... Ra1 {[%clk 0:01:23.8]} 26. Rxa1 {[%clk 0:02:08.1]}
26... Qxa1+ {[%clk 0:01:24.7]} 27. Kf2 {[%clk 0:02:08]} 27... Ra2+ {[%clk
0:01:12.2]} 28. Ne2 {[%clk 0:02:08.3]} 28... Qd1 {[%clk 0:01:06]} 29. h4 {[%clk
0:02:00.4]} 29... f5 {[%clk 0:01:00.5]} 30. Qf3 {[%clk 0:01:55.3]} 30... Bxc3
{[%clk 0:00:59.2]} 31. h5 {[%clk 0:01:51.5]} 31... Qe1# {[%clk 0:00:57.3]} 0-1